bitfinex/quotes_BTCUSD_20240613
["timestamp","ask_amount","ask_price","bid_price","bid_amount"]
[1718250434221,0.07215996,67301.0,67298.0,0.014]
[1718250434432,0.07215996,67301.0,67289.0,0.24431993]
[1718250434433,0.07215996,67301.0,67289.0,0.1]
[1718250434644,0.07215996,67301.0,67295.0,0.014]
[1718250434866,0.09533824,67298.0,67288.0,0.477115]
[1718250435091,0.07215996,67290.0,67288.0,0.477115]
[1718250435525,0.7375,67289.0,67288.0,0.477115]
[1718250436621,0.719,67297.0,67288.0,0.477115]
[1718250436866,0.001,67290.0,67288.0,0.477115]
[1718250437090,0.001,67290.0,67289.0,0.09140768]
[1718250437291,0.719,67297.0,67289.0,0.09140768]
[1718250437498,0.719,67297.0,67295.0,0.014]
[1718250437710,0.719,67297.0,67288.0,0.48177676]
[1718250437912,0.719,67297.0,67290.0,0.00466176]
[1718250438749,0.719,67297.0,67295.0,0.001]
[1718250438750,0.723,67297.0,67295.0,0.001]
[1718250438967,0.004,67297.0,67296.0,0.02380676]
[1718250439172,0.7081,67314.0,67300.0,0.00466176]
[1718250439434,0.14431993,67313.0,67302.0,0.00466176]
[1718250439656,0.14431993,67313.0,67300.0,0.00466176]
[1718250439861,0.14431993,67313.0,67298.0,0.019145]
[1718250439862,0.14431993,67313.0,67304.0,0.00466176]
[1718250440335,0.14431993,67313.0,67304.0,0.00437676]
[1718250440696,0.07215996,67308.0,67302.0,0.00437676]
[1718250440873,0.07215996,67308.0,67300.0,0.00437676]
[1718250441086,0.07215996,67308.0,67296.0,0.02057068]
[1718250441087,0.07215996,67308.0,67297.0,0.00437676]
[1718250441294,0.07215996,67308.0,67304.0,0.001]
[1718250441706,0.07215996,67308.0,67296.0,0.02494744]
[1718250441935,0.07615996,67308.0,67302.0,0.001]
[1718250442149,0.07615996,67308.0,67304.0,0.001]
[1718250442360,0.07215996,67308.0,67304.0,0.001]
[1718250442565,0.07215996,67308.0,67304.0,0.002]
[1718250442792,0.07615996,67308.0,67304.0,0.001]
[1718250443017,0.07815996,67308.0,67304.0,0.001]
[1718250443754,0.07615996,67308.0,67304.0,0.001]
[1718250443964,0.07815996,67308.0,67304.0,0.002]
[1718250444183,0.006,67308.0,67305.0,0.00437676]
[1718250444395,0.006,67308.0,67304.0,0.002]
[1718250444396,0.006,67308.0,67306.0,0.00437676]
[1718250444603,0.006,67308.0,67307.0,0.02352176]
[1718250445035,0.002,67308.0,67307.0,0.02352176]
[1718250445249,0.005,67308.0,67307.0,0.02352176]
[1718250445667,0.002,67308.0,67307.0,0.02352176]
[1718250445878,0.002,67308.0,67307.0,0.00437676]
[1718250446088,0.07215996,67315.0,67308.0,0.00437676]
[1718250446291,0.07208996,67315.0,67308.0,0.00437676]
[1718250446705,0.07208996,67315.0,67309.0,0.00437676]
[1718250447542,0.07208996,67315.0,67308.0,0.00737676]
[1718250447782,0.07208996,67315.0,67306.0,0.00437676]
[1718250448873,0.07208996,67315.0,67303.0,0.00437676]
[1718250449108,0.07208996,67315.0,67304.0,0.05173894]
[1718250449332,0.07208996,67315.0,67309.0,0.006]
[1718250449783,0.07208996,67315.0,67311.0,0.00437676]
[1718250450010,0.4714,67318.0,67311.0,0.00437676]
[1718250450011,0.4714,67318.0,67313.0,0.00437676]
[1718250450223,0.07215996,67314.0,67311.0,0.00437676]
[1718250450432,0.07215996,67314.0,67313.0,0.00437676]
[1718250450642,0.4714,67318.0,67315.0,0.00437676]
[1718250450873,0.4714,67318.0,67307.0,0.00437676]
[1718250451083,0.07215996,67312.0,67308.0,0.00437676]
[1718250451729,0.07215996,67312.0,67310.0,0.00437676]
[1718250451932,0.001,67315.0,67313.0,0.00437676]
[1718250452185,0.001,67315.0,67314.0,0.02352176]
[1718250452394,0.001,67315.0,67313.0,0.00437676]
[1718250452595,0.003,67318.0,67313.0,0.00437676]
[1718250452881,0.07215996,67322.0,67313.0,0.00437676]
[1718250453101,0.21647989,67322.0,67313.0,0.00437676]
[1718250453312,0.21647989,67322.0,67313.0,0.01672894]
[1718250454735,0.002,67315.0,67313.0,0.01672894]
[1718250454930,0.21647989,67322.0,67313.0,0.00437676]
[1718250455173,0.21647989,67322.0,67309.0,0.00437676]
[1718250455382,0.07215996,67315.0,67313.0,0.001]
[1718250455753,0.07215996,67315.0,67304.0,0.1]
[1718250455995,0.07215996,67315.0,67304.0,0.10437676]
[1718250455996,0.07215996,67308.0,67304.0,0.10437676]
[1718250456160,0.07215996,67308.0,67301.0,0.1]
[1718250456362,0.07215996,67308.0,67300.0,0.2388]
[1718250456363,0.56315996,67308.0,67296.0,0.477115]
[1718250456564,0.07215996,67301.0,67296.0,0.477115]
[1718250456765,0.07215996,67301.0,67294.0,0.00437676]
[1718250457785,0.07215996,67301.0,67296.0,0.014]
[1718250459156,0.07215996,67301.0,67294.0,0.00437676]
[1718250459513,0.07215996,67301.0,67296.0,0.014]
[1718250460339,0.07215996,67301.0,67296.0,0.013715]
[1718250460685,0.14431993,67307.0,67296.0,0.00437676]
[1718250460879,0.001,67301.0,67296.0,0.01837676]
[1718250461083,0.001,67301.0,67297.0,0.00437676]
[1718250462380,0.14431993,67307.0,67297.0,0.00437676]
[1718250463352,0.14431993,67307.0,67298.0,0.00437676]
[1718250463552,0.14431993,67307.0,67290.0,0.4993]
[1718250463553,0.14431993,67307.0,67297.0,0.01837676]
[1718250463947,0.14431993,67307.0,67297.0,0.014]
[1718250464331,0.14431993,67307.0,67295.0,0.00437676]
[1718250464332,0.07215996,67301.0,67295.0,0.00437676]
[1718250464537,0.14431993,67300.0,67286.0,0.00437676]
[1718250464765,0.721,67299.0,67297.0,0.003]
[1718250464977,0.14431993,67298.0,67297.0,0.003]
[1718250465594,0.14431993,67298.0,67297.0,0.009]
[1718250466007,0.14431993,67298.0,67297.0,0.01]
[1718250466213,0.14431993,67298.0,67297.0,0.001]
[1718250466427,0.14431993,67298.0,67297.0,0.002]
[1718250466631,0.14931993,67298.0,67297.0,0.002]
[1718250467093,0.14431993,67298.0,67297.0,0.001]
[1718250467543,0.14931993,67298.0,67297.0,0.001]
[1718250467764,0.01,67298.0,67297.0,0.002]
[1718250467977,0.005,67298.0,67297.0,0.001]
[1718250468431,0.011,67298.0,67297.0,0.002]
[1718250468645,0.011,67298.0,67297.0,0.001]
[1718250469009,0.011,67298.0,67297.0,0.011]
[1718250469211,0.005,67298.0,67297.0,0.011]
[1718250469415,0.005,67298.0,67297.0,0.001]
[1718250469797,0.005,67298.0,67297.0,0.00537676]
[1718250470004,0.005,67298.0,67297.0,0.20542176]
[1718250470208,0.005,67298.0,67297.0,0.29952829]
[1718250470456,0.005,67298.0,67297.0,0.29852829]
[1718250470633,0.07215996,67308.0,67306.0,0.00437676]
[1718250471056,0.07215996,67308.0,67297.0,0.09410653]
[1718250471241,0.07215996,67299.0,67294.0,0.00409176]
[1718250471443,0.005,67298.0,67297.0,0.00409176]
[1718250471643,0.005,67298.0,67297.0,0.014]
[1718250472262,0.07215996,67299.0,67297.0,0.00409176]
[1718250472461,0.07215996,67299.0,67294.0,0.019145]
[1718250472462,0.07215996,67299.0,67294.0,0.00409176]
[1718250472748,0.4755,67301.0,67294.0,0.00409176]
[1718250472749,0.005,67298.0,67297.0,0.00509176]
[1718250472948,0.4755,67301.0,67297.0,0.00409176]
[1718250474439,0.2424,67302.0,67299.0,0.00409176]
[1718250474643,0.2424,67302.0,67297.0,0.00409176]
[1718250475311,0.07515996,67301.0,67297.0,0.00409176]
[1718250475717,0.07215996,67301.0,67299.0,0.001]
[1718250475921,0.07215996,67301.0,67292.0,0.00409176]
[1718250476127,0.07215996,67301.0,67287.0,0.23799176]
[1718250476128,0.07215996,67293.0,67287.0,0.23799176]
[1718250476555,0.07215996,67293.0,67289.0,0.00409176]
[1718250477005,0.07215996,67293.0,67290.0,0.00409176]
[1718250477679,0.07215996,67301.0,67289.0,0.00409176]
[1718250477879,0.07215996,67301.0,67290.0,0.07342518]
[1718250478129,0.07215996,67301.0,67299.0,0.001]
[1718250478324,0.07215996,67301.0,67285.0,0.477115]
[1718250478325,0.14431993,67300.0,67285.0,0.477115]
[1718250478510,0.07215996,67294.0,67285.0,0.477115]
[1718250478774,0.14431993,67293.0,67290.0,0.013]
[1718250478990,0.14431993,67293.0,67285.0,0.477115]
[1718250479406,0.14431993,67293.0,67290.0,0.003]
[1718250479595,0.14431993,67293.0,67285.0,0.477115]
[1718250479821,0.14531993,67293.0,67289.0,0.014]
[1718250480318,0.14431993,67293.0,67282.0,0.00409176]
[1718250480656,0.15031993,67293.0,67290.0,0.001]
[1718250481139,0.14431993,67293.0,67283.0,0.00409176]
[1718250481355,0.07215996,67287.0,67264.0,0.50009176]
[1718250481559,0.07215996,67277.0,67265.0,0.07134094]
[1718250481765,0.07215996,67277.0,67266.0,0.06388252]
[1718250481766,0.7155,67276.0,67266.0,0.06388252]
[1718250481974,0.7155,67276.0,67264.0,0.00409176]
[1718250482189,0.85981993,67276.0,67265.0,0.00409176]
[1718250483459,0.07215996,67269.0,67260.0,0.496]
[1718250483679,0.07215996,67269.0,67257.0,0.24249176]
[1718250484093,0.14431993,67268.0,67257.0,0.00409176]
[1718250484327,0.14431993,67268.0,67249.0,0.00409176]
[1718250484328,0.07215996,67260.0,67249.0,0.00409176]
[1718250484546,0.07215996,67260.0,67240.0,0.6945]
[1718250484547,0.07215996,67260.0,67248.0,0.00409176]
[1718250484768,0.21647989,67260.0,67240.0,0.8754]
[1718250485209,0.14431993,67259.0,67249.0,0.00409176]
[1718250485436,0.14431993,67259.0,67247.0,0.00409176]
[1718250485688,0.14431993,67259.0,67249.0,0.014]
[1718250485902,0.14431993,67259.0,67249.0,0.00409176]
[1718250486572,0.14431993,67259.0,67249.0,0.009]
[1718250486971,0.07215996,67253.0,67249.0,0.009]
[1718250487140,0.52305996,67253.0,67241.0,0.1]
[1718250487344,0.14431993,67252.0,67249.0,0.001]
[1718250488025,0.14431993,67252.0,67236.0,0.48115]
[1718250488228,0.14431993,67252.0,67249.0,0.001]
[1718250488229,0.09590824,67251.0,67249.0,0.001]
[1718250488432,0.52305996,67253.0,67236.0,0.00855]
[1718250488433,0.14431993,67250.0,67236.0,0.00855]
[1718250488578,0.14431993,67250.0,67237.0,0.00409176]
[1718250488781,0.14431993,67250.0,67249.0,0.001]
[1718250489138,0.14431993,67250.0,67236.0,0.00855]
[1718250489351,0.14431993,67250.0,67238.0,0.00409176]
[1718250489556,0.14431993,67250.0,67236.0,0.027695]
[1718250489557,0.14431993,67250.0,67249.0,0.003]
[1718250489768,0.14431993,67250.0,67249.0,0.002]
[1718250490015,0.14431993,67250.0,67249.0,0.003]
[1718250490222,0.15331993,67250.0,67249.0,0.001]
[1718250490427,0.01,67250.0,67249.0,0.000715]
[1718250490643,0.01,67250.0,67249.0,0.00480676]
[1718250491066,0.009,67250.0,67249.0,0.00480676]
[1718250491270,0.023,67250.0,67249.0,0.001575]
[1718250491483,0.014,67250.0,67249.0,0.00086]
[1718250492095,0.014,67250.0,67249.0,0.00495176]
[1718250492317,0.014,67250.0,67249.0,0.02409676]
[1718250492560,0.015,67250.0,67249.0,0.02409676]
[1718250492743,0.001,67250.0,67249.0,0.02409676]
[1718250492965,0.002,67250.0,67249.0,0.02409676]
[1718250493415,0.001,67250.0,67249.0,0.01909676]
[1718250493619,0.7024,67259.0,67249.0,0.00909676]
[1718250493857,0.001,67250.0,67249.0,0.00909676]
[1718250494068,0.001,67250.0,67249.0,0.01909676]
[1718250494579,0.14431993,67258.0,67251.0,0.01909676]
[1718250494774,0.14431993,67258.0,67249.0,0.01]
[1718250495035,0.21647989,67258.0,67249.0,0.01]
[1718250495602,0.21647989,67258.0,67244.0,0.01909676]
[1718250495818,0.21647989,67258.0,67246.0,0.01909676]
[1718250496184,0.21647989,67258.0,67249.0,0.002]
[1718250496650,0.21947989,67258.0,67249.0,0.01909676]
[1718250496877,0.003,67258.0,67257.0,0.01909676]
[1718250497100,0.004,67258.0,67257.0,0.01909676]
[1718250497752,0.003,67258.0,67257.0,0.01909676]
[1718250498169,0.017,67258.0,67257.0,0.01909676]
[1718250498706,0.017,67258.0,67257.0,0.01409676]
[1718250499679,0.003,67258.0,67257.0,0.01409676]
[1718250499889,0.015,67258.0,67257.0,0.01409676]
[1718250500457,0.015,67258.0,67257.0,0.01381176]
[1718250500911,0.012,67258.0,67257.0,0.01381176]
[1718250501230,0.021,67258.0,67257.0,0.01381176]
[1718250501414,0.012,67258.0,67257.0,0.01381176]
[1718250501713,0.012,67258.0,67257.0,0.01481176]
[1718250501968,0.026,67258.0,67257.0,0.01481176]
[1718250502409,0.026,67258.0,67257.0,0.04538294]
[1718250502669,0.026,67258.0,67257.0,0.90560287]
[1718250502948,0.026,67258.0,67257.0,1.11200287]
[1718250503170,0.026,67258.0,67257.0,1.31200287]
[1718250503393,0.01283,67258.0,67257.0,1.21200287]
[1718250504155,0.43295979,67278.0,67275.0,0.01381176]
[1718250504590,0.2536,67285.0,67275.0,0.01381176]
[1718250504836,0.14431993,67284.0,67269.0,0.01381176]
[1718250505049,0.14431993,67284.0,67271.0,0.01381176]
[1718250505050,0.07215996,67273.0,67271.0,0.01381176]
[1718250505274,0.07215996,67273.0,67269.0,0.01381176]
[1718250505484,0.07215996,67273.0,67270.0,0.01381176]
[1718250505710,0.07215996,67273.0,67271.0,0.01381176]
[1718250505933,0.4899,67279.0,67271.0,0.01381176]
[1718250506344,0.4899,67279.0,67267.0,0.01381176]
[1718250506764,0.4899,67279.0,67268.0,0.06282294]
[1718250506973,0.014,67273.0,67270.0,0.01381176]
[1718250507187,0.07215996,67271.0,67263.0,0.01381176]
[1718250507899,0.5039,67279.0,67268.0,0.01381176]
[1718250508151,0.66221993,67279.0,67273.0,0.01381176]
[1718250508395,0.63421993,67279.0,67271.0,0.01381176]
[1718250508630,0.07215996,67287.0,67275.0,0.01381176]
[1718250508631,0.7302,67286.0,67275.0,0.01381176]
[1718250508864,0.14431993,67285.0,67275.0,0.01381176]
[1718250509315,0.14431993,67285.0,67278.0,0.01381176]
[1718250509534,0.014,67279.0,67273.0,0.001]
[1718250509735,0.014,67279.0,67275.0,0.01381176]
[1718250509939,0.01382111,67279.0,67275.0,0.01381176]
[1718250510349,0.02782111,67279.0,67276.0,0.01381176]
[1718250510588,0.02782111,67279.0,67273.0,0.001]
[1718250510589,0.02782111,67279.0,67278.0,0.01381176]
[1718250510823,0.02782111,67279.0,67278.0,0.46481176]
[1718250511062,0.4873,67292.0,67283.0,0.01381176]
[1718250511292,0.005,67286.0,67283.0,0.01381176]
[1718250511714,0.14431993,67291.0,67283.0,0.01381176]
[1718250511925,0.07215996,67287.0,67278.0,0.014]
[1718250512174,0.001,67279.0,67278.0,0.014]
[1718250512379,0.001,67279.0,67278.0,0.01381176]
[1718250514050,0.001,67279.0,67278.0,0.01781176]
[1718250514248,0.001,67279.0,67278.0,0.52969234]
[1718250514452,0.003,67287.0,67286.0,0.01]
[1718250514781,0.2384,67300.0,67286.0,0.19471176]
[1718250514980,0.000946,67301.0,67300.0,0.01381176]
[1718250515413,0.000946,67301.0,67297.0,0.01381176]
[1718250515652,0.000946,67301.0,67295.0,0.01381176]
[1718250516713,0.09609456,67300.0,67291.0,0.1809]
[1718250516923,0.09609456,67300.0,67291.0,0.01381176]
[1718250516924,0.07215996,67300.0,67291.0,0.01381176]
[1718250517557,0.07208649,67300.0,67297.0,0.004]
[1718250518616,0.07208649,67300.0,67291.0,0.01381176]
[1718250519025,0.08008649,67300.0,67297.0,0.001]
[1718250519444,0.008,67300.0,67297.0,0.001]
[1718250519645,0.2333,67298.0,67297.0,0.001]
[1718250520264,0.008,67300.0,67297.0,0.001]
[1718250520478,0.000946,67301.0,67291.0,0.01352676]
[1718250520684,0.000946,67301.0,67295.0,0.01352676]
[1718250520894,0.001,67300.0,67295.0,0.01352676]
[1718250521248,0.001,67300.0,67296.0,0.01352676]
[1718250521472,0.005,67298.0,67296.0,0.01352676]
[1718250521818,0.005,67298.0,67291.0,0.02344268]
[1718250521819,0.005,67298.0,67297.0,0.01352676]
[1718250523577,0.005,67298.0,67297.0,0.01552676]
[1718250523771,0.005,67298.0,67297.0,0.02146987]
[1718250523979,0.000946,67301.0,67300.0,0.01352676]
[1718250525283,0.014946,67301.0,67300.0,0.001]
[1718250525494,0.014946,67301.0,67300.0,0.01452676]
[1718250525705,0.028946,67301.0,67300.0,0.01552676]
[1718250530159,0.028946,67301.0,67300.0,0.001]
[1718250530160,0.014946,67301.0,67300.0,0.001]
[1718250530383,0.014946,67301.0,67300.0,0.01452676]
[1718250530604,0.015946,67301.0,67300.0,0.01952676]
[1718250530843,0.001946,67301.0,67300.0,0.01952676]
[1718250531053,0.002946,67301.0,67300.0,0.03352676]
[1718250531288,0.002946,67301.0,67300.0,0.01952676]
[1718250531514,0.001946,67301.0,67300.0,0.01952676]
[1718250531732,0.002946,67301.0,67300.0,0.03352676]
[1718250532171,0.001946,67301.0,67300.0,0.02752676]
[1718250532614,0.002946,67301.0,67300.0,0.03452676]
[1718250533056,0.001946,67301.0,67300.0,0.02752676]
[1718250533507,0.002946,67301.0,67300.0,0.03552676]
[1718250535453,0.002946,67301.0,67300.0,0.22642676]
[1718250535891,0.002946,67301.0,67300.0,0.69392676]
[1718250536109,0.002946,67301.0,67300.0,0.77340544]
[1718250536960,0.002946,67301.0,67300.0,0.76340544]
[1718250537580,0.002946,67301.0,67300.0,0.91772537]
[1718250539059,0.002946,67301.0,67300.0,1.16652537]
[1718250540119,0.002946,67301.0,67300.0,1.15652537]
[1718250540536,0.002946,67301.0,67300.0,1.16652537]
[1718250540789,0.002946,67301.0,67300.0,1.15652537]
[1718250542808,0.002946,67301.0,67300.0,1.07704669]
[1718250543031,0.002946,67301.0,67300.0,0.75182676]
[1718250543219,0.002946,67301.0,67300.0,0.03552676]
[1718250544601,0.002946,67301.0,67300.0,0.05209418]
[1718250549185,0.002946,67301.0,67300.0,0.03856742]
[1718250549394,0.002946,67301.0,67300.0,0.022]
[1718250549865,0.002946,67301.0,67300.0,0.21642676]
[1718250550073,0.002946,67301.0,67300.0,1.21199414]
[1718250550545,0.002946,67301.0,67300.0,1.21913859]
[1718250552485,0.002946,67301.0,67300.0,1.37553859]
[1718250552944,0.002946,67301.0,67300.0,1.19463859]
[1718250553170,0.002946,67301.0,67300.0,1.37553859]
[1718250553606,0.001946,67301.0,67300.0,1.36182359]
[1718250553861,0.001946,67301.0,67300.0,1.37582359]
[1718250554083,0.002946,67301.0,67300.0,1.37582359]
[1718250554731,0.001946,67301.0,67300.0,1.36782359]
[1718250554934,0.001946,67301.0,67300.0,1.38182359]
[1718250555144,0.002946,67301.0,67300.0,1.58182359]
[1718250556205,0.002946,67301.0,67300.0,1.48182359]
[1718250556431,0.000946,67322.0,67321.0,0.01352676]
[1718250558160,0.000946,67322.0,67321.0,0.03296944]
[1718250559005,0.000946,67322.0,67321.0,0.21386944]
[1718250559448,0.000946,67322.0,67321.0,0.21486944]
[1718250559891,0.000946,67322.0,67321.0,0.22386944]
[1718250560167,0.001946,67322.0,67321.0,0.22786944]
[1718250560382,0.001946,67322.0,67321.0,0.23886944]
[1718250560596,0.001946,67322.0,67321.0,0.23858444]
[1718250562832,0.001946,67322.0,67321.0,0.05768444]
[1718250563069,0.001946,67322.0,67321.0,0.21914176]
[1718250564447,0.001946,67322.0,67321.0,0.03824176]
[1718250564901,0.00893997,67322.0,67321.0,0.03824176]
[1718250565135,0.001946,67322.0,67321.0,0.03824176]
[1718250565366,0.00893997,67322.0,67321.0,0.03824176]
[1718250566291,0.00893997,67322.0,67321.0,0.05206594]
[1718250568187,0.00893997,67322.0,67321.0,0.03882418]
[1718250568421,0.00893997,67322.0,67321.0,0.025]
[1718250569748,0.00893997,67322.0,67321.0,0.03824176]
[1718250570086,0.00893997,67322.0,67321.0,0.025]
[1718250572089,0.28309993,67323.0,67321.0,0.025]
[1718250572957,0.28309993,67323.0,67321.0,0.03824176]
[1718250573428,0.28294823,67323.0,67322.0,0.01324176]
[1718250573637,0.28294823,67323.0,67322.0,0.00324176]
[1718250574058,0.28294823,67323.0,67321.0,0.014]
[1718250574278,0.28294823,67323.0,67321.0,0.011]
[1718250574508,0.07215996,67331.0,67326.0,0.01324176]
[1718250574734,0.4951,67335.0,67328.0,0.01324176]
[1718250574958,0.4951,67335.0,67331.0,0.01324176]
[1718250575155,0.4951,67335.0,67330.0,0.01324176]
[1718250575589,0.07215996,67331.0,67322.0,0.01324176]
[1718250575800,0.07215996,67331.0,67323.0,0.08620594]
[1718250576007,0.4784,67330.0,67326.0,0.001]
[1718250576230,0.07215996,67331.0,67326.0,0.001]
[1718250576446,0.2507,67330.0,67326.0,0.001]
[1718250577318,0.2507,67330.0,67326.0,0.002]
[1718250577485,0.2507,67330.0,67326.0,0.001]
[1718250578399,0.25065958,67330.0,67326.0,0.001]
[1718250578604,0.25065958,67330.0,67328.0,0.01324176]
[1718250578819,0.25065958,67330.0,67326.0,0.002]
[1718250579799,0.07215996,67331.0,67326.0,0.002]
[1718250580191,0.07215996,67331.0,67326.0,0.01524176]
[1718250580397,0.07215996,67331.0,67328.0,0.001]
[1718250580607,0.07215996,67331.0,67326.0,0.001]
[1718250581029,0.07215996,67331.0,67326.0,0.002]
[1718250581265,0.07215996,67331.0,67323.0,0.01324176]
[1718250581473,0.2537,67330.0,67328.0,0.001]
[1718250581694,0.741516,67337.0,67328.0,0.01424176]
[1718250581926,0.38025397,67336.0,67332.0,0.01324176]
[1718250582130,0.07215996,67336.0,67330.0,0.01324176]
[1718250582342,0.07215996,67336.0,67326.0,0.001]
[1718250582343,0.07215996,67336.0,67331.0,0.01324176]
[1718250582554,0.07215996,67336.0,67332.0,0.01324176]
[1718250582774,0.07215996,67336.0,67331.0,0.07212418]
[1718250583168,0.07215996,67336.0,67332.0,0.001]
[1718250585433,0.07215996,67336.0,67332.0,0.01424176]
[1718250585892,0.07215996,67336.0,67332.0,0.002]
[1718250586111,0.07215996,67336.0,67334.0,0.01324176]
[1718250586315,0.009416,67337.0,67335.0,0.01324176]
[1718250586520,0.07215996,67336.0,67332.0,0.01524176]
[1718250586932,0.07215996,67336.0,67334.0,0.01324176]
[1718250587313,0.07215996,67336.0,67335.0,0.01324176]
[1718250588640,0.009416,67337.0,67336.0,0.01324176]
[1718250589252,0.009416,67337.0,67335.0,0.01524176]
[1718250589473,0.009416,67337.0,67336.0,0.01324176]
[1718250590600,0.009416,67337.0,67336.0,0.79098094]
[1718250591032,0.009416,67337.0,67336.0,0.78298094]
[1718250591247,0.009416,67337.0,67336.0,0.79398094]
[1718250591677,0.07099196,67346.0,67336.0,0.79698094]
[1718250591913,0.07099196,67346.0,67345.0,0.01295676]
[1718250592146,0.009416,67346.0,67345.0,0.01295676]
[1718250592776,0.457516,67351.0,67339.0,0.01295676]
[1718250593002,0.07215996,67345.0,67339.0,0.01295676]
[1718250593257,0.07215996,67345.0,67337.0,0.09869809]
[1718250593476,0.07215996,67345.0,67338.0,0.0131979]
[1718250594307,0.07215996,67345.0,67339.0,0.014]
[1718250594520,0.07215996,67345.0,67338.0,0.0131979]
[1718250594921,0.07215996,67345.0,67338.0,0.0271979]
[1718250595131,0.07215996,67345.0,67339.0,0.014]
[1718250595344,0.07215996,67345.0,67340.0,0.01591769]
[1718250596060,0.07215996,67345.0,67338.0,0.014]
[1718250596497,0.07215996,67345.0,67336.0,0.03800973]
[1718250596716,0.07215996,67345.0,67339.0,0.014]
[1718250596920,0.07215996,67345.0,67340.0,0.014]
[1718250598216,0.11607262,67353.0,67346.0,0.01295676]
[1718250598447,0.11607262,67353.0,67337.0,0.00215881]
[1718250598448,0.07215996,67353.0,67345.0,0.01295676]
[1718250598685,0.009416,67359.0,67350.0,0.01295676]
[1718250598686,0.04391266,67357.0,67350.0,0.01295676]
[1718250598916,0.09557596,67359.0,67353.0,0.01295676]
[1718250599387,0.08157596,67359.0,67353.0,0.01295676]
[1718250600052,0.009416,67359.0,67353.0,0.01295676]
[1718250600261,0.009416,67359.0,67353.0,0.74095676]
[1718250600466,0.009416,67359.0,67353.0,0.83305244]
[1718250600683,0.009416,67359.0,67353.0,0.83276744]
[1718250601116,0.009416,67359.0,67353.0,0.84276744]
[1718250601323,0.009416,67359.0,67353.0,0.97708737]
[1718250601542,0.009416,67359.0,67353.0,0.99108737]
[1718250601748,0.009416,67359.0,67353.0,0.97708737]
[1718250602160,0.009416,67359.0,67353.0,0.99108737]
[1718250603115,0.009416,67359.0,67353.0,0.014]
[1718250603315,0.009416,67359.0,67353.0,0.02667176]
[1718250603928,0.009416,67359.0,67353.0,0.89225468]
[1718250604155,0.009416,67359.0,67353.0,1.35569169]
[1718250604394,0.009416,67359.0,67358.0,0.02267176]
[1718250604518,0.00940501,67369.0,67368.0,0.01267176]
[1718250604751,0.00940501,67369.0,67368.0,0.88567176]
[1718250605157,0.00940501,67369.0,67368.0,1.34639169]
[1718250605365,0.00017919,67374.0,67373.0,0.02267176]
[1718250605575,0.00017919,67374.0,67373.0,0.88142479]
[1718250605782,0.00017919,67374.0,67373.0,1.49429231]
[1718250606303,0.00017919,67374.0,67373.0,1.10286411]
[1718250606514,0.00017919,67374.0,67373.0,0.1]
[1718250606713,0.00017919,67374.0,67370.0,0.01267176]
[1718250606940,0.00017919,67374.0,67373.0,0.01267176]
[1718250607954,0.07215996,67381.0,67373.0,0.01267176]
[1718250608156,0.06233915,67381.0,67370.0,0.1]
[1718250608361,0.06233915,67381.0,67373.0,0.014]
[1718250608582,0.06233915,67381.0,67373.0,0.028]
[1718250608583,0.78695996,67374.0,67373.0,0.028]
[1718250608811,0.78695996,67374.0,67373.0,0.014]
[1718250610274,0.7148,67374.0,67373.0,0.015]
[1718250610478,0.7148,67374.0,67373.0,0.000715]
[1718250611512,0.7158,67374.0,67373.0,0.001]
[1718250611723,0.7148,67374.0,67363.0,0.01267176]
[1718250611925,0.07215996,67373.0,67363.0,0.01267176]
[1718250612132,0.7148,67374.0,67373.0,0.001]
[1718250612133,0.001,67374.0,67373.0,0.001]
[1718250612759,0.001,67374.0,67373.0,0.002]
[1718250613175,0.001,67374.0,67373.0,0.001]
[1718250613588,0.06233915,67381.0,67367.0,0.01267176]
[1718250613810,0.06233915,67381.0,67373.0,0.001]
[1718250613998,0.001,67374.0,67373.0,0.001]
[1718250614417,0.001,67374.0,67373.0,0.01367176]
[1718250614619,0.07215996,67382.0,67374.0,0.00267176]
[1718250614823,0.07215996,67382.0,67374.0,0.01267176]
[1718250615110,0.001,67381.0,67374.0,0.01267176]
[1718250615500,0.001,67381.0,67380.0,0.01267176]
[1718250615916,0.001,67381.0,67377.0,0.01267176]
[1718250616171,0.001,67381.0,67378.0,0.01926718]
[1718250616383,0.001,67381.0,67380.0,0.01267176]
[1718250617214,0.00940501,67391.0,67383.0,0.01267176]
[1718250617651,0.00940501,67391.0,67382.0,0.01267176]
[1718250618069,0.00940501,67391.0,67380.0,0.7015]
[1718250618070,0.00940501,67391.0,67383.0,0.01267176]
[1718250618287,0.07215996,67389.0,67381.0,0.01267176]
[1718250618505,0.07215996,67389.0,67380.0,0.001]
[1718250618506,0.07215996,67389.0,67382.0,0.01267176]
[1718250618734,0.07215996,67389.0,67380.0,0.01367176]
[1718250618984,0.07215996,67389.0,67381.0,0.01267176]
[1718250619402,0.07215996,67389.0,67384.0,0.01267176]
[1718250619556,0.07215996,67389.0,67382.0,0.04952718]
[1718250619996,0.07215996,67389.0,67382.0,0.06219894]
[1718250620394,0.00940501,67391.0,67384.0,0.01267176]
[1718250620571,0.00940501,67391.0,67386.0,0.01267176]
[1718250620975,0.00940501,67391.0,67384.0,0.01267176]
[1718250621199,0.07215996,67389.0,67382.0,0.004]
[1718250621380,0.07215996,67389.0,67382.0,0.07292718]
[1718250621966,0.07215996,67389.0,67386.0,0.014]
[1718250622178,0.07215996,67389.0,67382.0,0.06892718]
[1718250622377,0.07215996,67389.0,67384.0,0.001]
[1718250622989,0.07215996,67389.0,67382.0,0.06992718]
[1718250623226,0.07215996,67389.0,67386.0,0.003]
[1718250623888,0.07215996,67389.0,67380.0,0.01]
[1718250624110,0.00940501,67391.0,67384.0,0.005]
[1718250624950,0.07215996,67388.0,67384.0,0.005]
[1718250625587,0.07215996,67388.0,67380.0,0.01]
[1718250625798,0.07215996,67388.0,67386.0,0.003]
[1718250626416,0.07215996,67388.0,67380.0,0.05371829]
[1718250626791,0.07215996,67388.0,67384.0,0.014]
[1718250626966,0.4546,67389.0,67384.0,0.014]
[1718250627164,0.00940501,67391.0,67380.0,0.06639005]
[1718250627409,0.00940501,67391.0,67384.0,0.012]